Cogmind - Beta 13 *** ADVENTURER MODE // 2024.03.10 @ 16:32:10 Player: Occam Result: Self-destructed Performance ------------- Evolutions (2) 1000 Regions Visited (6) 1200 Robots Destroyed (136) 680 Value Destroyed (3659) 3659 Prototype IDs (31) 620 Alien Tech Used (0) 0 Bonus (829) 829 TOTAL SCORE: 7988 Bonus ------- High Alert Combat Kills 131 Follower Combat Kills 412 Aligned with FarCom 300 Friendly Fire -14 Cogmind --------- Core Integrity 263/550 Matter 233/300 Energy 280/280 System Corruption 5% Temperature Cool (0) Movement Rolling (205) Ox7 Location -8/Storage Parts ------- > --- POWER (1) -------- Cooled Ion Engine > --- PROPULSION (4) --- Light Treads Advanced Treads Compact Wheel > --- UTILITY (4) ------ Improved Heat Sink Huge Storage Unit Hardened Heavy Armor Plating > --- WEAPON (2) ------- Gauss Rifle Rocket Launcher > --- INVENTORY (25) --- Deuterium Engine Light Treads Compact Wheel Compact Wheel Improved Heat Sink Medium Storage Unit High-capacity Matter Pod (200) Structural Scanner Improved Signal Interpreter Hardened Heavy Armor Plating Hacking Suite Hacking Suite System Shield Improved Trap Extractor (5/6 Shock) Sensor Drone Bay (20/20) Beamcaster EM Pulse Cannon Firepult Improved Assault Rifle Improved Assault Rifle Improved Assault Rifle Improved Datajack Katana Peak State ------------ > --- POWER ------------ Deuterium Engine > --- PROPULSION ------- Advanced Treads Advanced Treads Advanced Treads Compact Wheel > --- UTILITY ---------- Huge Storage Unit Structural Scanner Hardened Heavy Armor Plating > --- WEAPON ----------- Improved Assault Rifle Gauss Rifle > --- INVENTORY -------- Micro Nuclear Core Light Treads Compact Wheel Compact Wheel Improved Heat Sink Improved Heat Sink Medium Storage Unit High-capacity Matter Pod Improved Signal Interpreter Hardened Heavy Armor Plating Hacking Suite Hacking Suite System Shield Improved Trap Extractor Sensor Drone Bay Beamcaster EM Pulse Cannon Firepult Improved Assault Rifle Improved Assault Rifle Rocket Launcher Improved Datajack Katana [Rating: 38] Favorites ----------- Power Ion Engine Engine Ion Engine Power Core Light Nuclear Core Propulsion Light Treads Treads Light Treads Leg Aluminum Leg Wheel Compact Wheel Utility Huge Storage Unit Device Structural Scanner Storage Huge Storage Unit Protection Improved Light Armor Plating Weapon Assault Rifle Energy Gun Spread Laser Ballistic Gun Assault Rifle Ballistic Cannon Light Cannon Launcher Grenade Launcher Special Weapon Plasma Flamer Impact Weapon Hammer Slashing Weapon Katana Build | -11 -10 -10 -10 -9 -8 -8 ------- Run | Yrd Mat Min Exi Min Mat Sto Slots Evolved 4 | . . . . . 4 . Power . | . . . . . . . Propulsion 2 | . . . . . 2 . Utility 2 | . . . . . 2 . Weapon . | . . . . . . . Parts Attached 89 | 1 14 10 1 7 42 14 Power 7 | . 1 . . . 5 1 Engine 3 | . 1 . . . 1 1 Core 4 | . . . . . 4 . Reactor . | . . . . . . . Propulsion 25 | . 4 2 . . 15 4 Treads 16 | . 1 1 . . 10 4 Leg . | . . . . . . . Wheel 9 | . 3 1 . . 5 . Hover . | . . . . . . . Flight . | . . . . . . . Utility 22 | 1 2 4 . 2 11 2 Device 10 | 1 1 1 . 1 5 1 Storage 2 | . 1 . . . 1 . Processor . | . . . . . . . Hackware . | . . . . . . . Protection 10 | . . 3 . 1 5 1 Artifact . | . . . . . . . Weapon 35 | . 7 4 1 5 11 7 Energy Gun 9 | . 1 3 . 1 4 . Energy Cannon . | . . . . . . . Ballistic Gun 16 | . 3 1 . 3 5 4 Ballistic Cannon 1 | . 1 . . . . . Launcher 4 | . 1 . . 1 1 1 Special Weapon 1 | . . . 1 . . . Impact Weapon 1 | . 1 . . . . . Slashing Weapon 3 | . . . . . 1 2 Piercing Weapon . | . . . . . . . Special Melee Weapon . | . . . . . . . Unidentified Prototypes 3 | . . . . 1 1 1 Parts Lost 11 | . 2 1 . 1 6 1 Power 1 | . 1 . . . . . Propulsion 5 | . . 1 . . 3 1 Utility 2 | . . . . . 2 . Weapon 3 | . 1 . . 1 1 . Highest Loss Streak 2 | . 2 1 . 1 2 1 To Critical Strikes 1 | . . . . . 1 . Average Slot Usage (%) 97 | . 99 99 100 99 96 89 Engine 10 | . 13 14 14 14 6 8 Treads 19 | . 12 14 14 14 24 26 Wheel 12 | . 12 13 14 14 11 9 Device 10 | . 14 3 . . 14 9 Storage 11 | . 14 14 14 14 9 9 Protection 7 | . . 10 14 13 9 8 Energy Gun 8 | . 13 11 7 . 7 . Ballistic Gun 13 | . 13 16 14 27 10 17 Naked Turns . | . . . . . . . Heaviest Build 117 | 14 92 96 96 103 117 117 Greatest Support 28 | 20 20 16 16 16 28 22 Greatest Overweight (x) 7 | . 5 5 5 6 7 7 Average Overweight (x) 4 | . 3 5 5 5 5 6 Largest Inventory Capacity 25 | 8 25 25 25 25 25 25 Average Capacity 23 | 8 20 25 25 25 25 25 Most Carried 25 | 7 15 25 25 25 25 25 Average Carried 20 | 6 10 22 24 24 24 24 Final Capacity 25 | 8 25 25 25 25 25 25 Final Carried 25 | 7 15 25 24 25 25 25 Class Distribution -------------------- 63% | Mutant 33% | Scavenger-Mutant 3% | Commander-Mutant Dominant Class ---------------- Mutant | -10/Materials Mutant | -10/Mines Mutant | -10/Exiles Mutant | -9/Mines Scavenger-Mutant | -8/Materials Scavenger-Mutant | -8/Storage Resources | -11 -10 -10 -10 -9 -8 -8 ----------- Run | Yrd Mat Min Exi Min Mat Sto Matter Collected 2669 | 215 401 300 . 223 1053 477 Remotely . | . . . . . . . Salvage Created 5074 | 115 923 254 . 341 2406 1035 Parts 287 | 2 48 16 . 21 137 63 Haulers Intercepted 10 | . 2 . . . 5 3 Recyclers Shooed 5 | . 1 . . 2 1 1 Parts Field Recycled . | . . . . . . . Retrieved Matter . | . . . . . . . Parts Self-Destructed . | . . . . . . . Prevented . | . . . . . . . Kills | -11 -10 -10 -10 -9 -8 -8 ------- Run | Yrd Mat Min Exi Min Mat Sto Combat Hostiles Destroyed 88 | . 17 8 . 5 44 14 Guns 82 | . 17 7 . 3 44 11 AOE 6 | . . 1 . 2 . 3 Classes Destroyed 14 | 2 5 . . 1 4 2 Worker 5 | . . . . 2 3 . Builder 3 | . 1 . . . 1 1 Tunneler 4 | 1 . 1 . 1 1 . Hauler 10 | . 2 . . . 5 3 Recycler 15 | 1 2 . . 2 6 4 Operator 4 | . . . . . 3 1 Watcher 8 | . 3 . . . 5 . Swarmer 17 | . 3 3 . 1 8 2 Grunt 49 | . 14 5 . 4 22 4 Brawler 1 | . . . . . . 1 Duelist 1 | . . . . . 1 . Protector 1 | . . . . . . 1 Sentry 15 | . . . . . 10 5 Hunter 4 | . . . . . 3 1 Best Kill Streak 7 | 2 5 3 . 7 7 5 Combat Bots Only 6 | . 3 3 . 4 6 5 Max Kills in Single Turn 2 | 1 1 2 . 2 2 2 Gunslinging 1 | . . 1 . . 1 . Exploded 2 | . . 1 . 2 . 2 Melee . | . . . . . . . Uniques/NPCs Destroyed . | . . . . . . . Combat | -11 -10 -10 -10 -9 -8 -8 -------- Run | Yrd Mat Min Exi Min Mat Sto Hostile Shots Fired 494 | . 88 25 . 47 220 114 Missed 137 | . 23 9 . 10 58 37 Damage Taken 4121 | . 546 173 . 348 1933 1121 Core 429 | . 82 28 . 32 241 46 Absorbed by Shields . | . . . . . . . Ignored by Resistances 1208 | . 171 56 . 106 562 313 Regen/Repaired (Parts) 791 | . . . . . 328 463 Core Remaining (%) 71 | 100 . . . 43 . . Volleys Fired 335 | 5 70 21 . 20 167 52 Largest 2 | 2 2 2 . 2 2 2 Hottest 123 | 70 70 88 . 123 98 51 Shots Fired 658 | 10 138 42 . 39 328 101 Gun 645 | 10 134 41 . 36 328 96 Cannon 2 | . 2 . . . . . Launcher 9 | . 2 1 . 1 . 5 Special 2 | . . . . 2 . . Kinetic 410 | 5 69 29 . 34 177 96 Thermal 239 | 5 67 12 . 4 151 . Explosive 9 | . 2 1 . 1 . 5 Electromagnetic . | . . . . . . . Robot Hit Streak 40 | 8 17 16 . 20 40 31 Robot Miss Streak 4 | 1 3 2 . 1 4 2 Penetration Max 1 | . . . . . . 1 Secondary Targets 11 | . 1 2 . . 7 1 Max Gunslinging Chain 1 | . 1 1 . . 1 1 Shots Hit Robots 535 | 8 109 31 . 33 271 83 Core Hits 396 | 4 43 17 . 13 274 45 Critical Kills . | . . . . . . . Critical Parts Destroyed 2 | . . . . . 2 . Critical Strikes 13 | . 9 . . . 4 . Burn 11 | . 9 . . . 2 . Destroy 2 | . . . . . 2 . Melee Attacks 5 | . 2 . . . 1 2 Impact 2 | . 2 . . . . . Slashing 3 | . . . . . 1 2 Piercing . | . . . . . . . Sneak Attacks . | . . . . . . . Combat Hostiles . | . . . . . . . Follow-up Attacks . | . . . . . . . Damage Inflicted 9624 | 80 1420 513 . 588 4715 2308 Guns 8379 | 80 1420 441 . 465 4524 1449 Cannons . | . . . . . . . Explosions 1198 | . . 72 . 98 191 837 Melee . | . . . . . . . Ramming 22 | . . . . . . 22 Kinetic 4899 | 30 679 329 . 441 1971 1449 Thermal 3505 | 50 741 112 . 49 2553 . Explosive 1198 | . . 72 . 98 191 837 Electromagnetic . | . . . . . . . Impact . | . . . . . . . Slashing . | . . . . . . . Piercing . | . . . . . . . Highest Corruption 5 | . . . . . 1 5 Average Corruption 1 | . . . . . 1 3 Corruption Purged . | . . . . . . . Corruption Blocked . | . . . . . . . Effects 37 | . . . . . 19 18 Message Errors 9 | . . . . . 5 4 Matter Fused 5 | . . . . . 2 3 Heat Flow Errors 5 | . . . . . 3 2 Energy Discharges 3 | . . . . . 2 1 Parts Rejected 1 | . . . . . . 1 Data Loss (minor) 7 | . . . . . 4 3 Data Loss (major) 3 | . . . . . 2 1 Misfires 3 | . . . . . . 3 Alerts 1 | . . . . . 1 . Overload Shots . | . . . . . . . Overflow Damage 32 | . . . . . 25 7 Projectiles . | . . . . . . . Explosions 32 | . . . . . 25 7 Melee . | . . . . . . . Knockbacks 1 | . . . . . . 1 Impact 1 | . . . . . . 1 Kinetic . | . . . . . . . Secondary . | . . . . . . . Self-Inflicted Damage 273 | . . 17 . . 115 141 Shots 8 | . . 1 . . 2 5 Rammed 1 | . . . . . . 1 Targets Rammed 1 | . . . . . . 1 Kicked . | . . . . . . . Crushed . | . . . . . . . Highest Temperature 313 | 70 129 153 . 313 265 307 Average Temperature 49 | 36 36 42 . 189 26 61 Received Heat Transfer 2022 | . 363 135 . 246 846 432 Effects 3 | . . . . . . 3 Interference 3 | . . . . . . 3 Siege Activations . | . . . . . . . Robots Corrupted . | . . . . . . . Combat Hostiles . | . . . . . . . Parts Fried . | . . . . . . . Impact Corruptions . | . . . . . . . Robots Melted . | . . . . . . . Combat Hostiles . | . . . . . . . Parts Melted 8 | . 5 . . . 3 . Heat Transferred 7003 | 148 2812 296 . 197 3550 . Parts Sabotaged . | . . . . . . . Parts Stolen . | . . . . . . . Parts Stripped . | . . . . . . . Power Chain Reactions . | . . . . . . . Alert | -11 -10 -10 -10 -9 -8 -8 ------- Run | Yrd Mat Min Exi Min Mat Sto Peak Influence 624 | 10 357 231 . 211 437 624 Initial 69 | . 5 23 . . 69 57 Average 149 | 6 89 90 . 172 164 292 Maximum Alert Level 2 | . 1 1 . 1 2 2 Low Security (%) 70 | 100 88 94 . 26 63 43 Level 1 25 | . 11 5 . 73 36 22 Level 2 4 | . . . . . . 34 Level 3 . | . . . . . . . Level 4 . | . . . . . . . Level 5 . | . . . . . . . High Security . | . . . . . . . Max Security . | . . . . . . . Squads Dispatched 22 | . 3 . . . 12 7 Investigation 10 | . 3 . . . 6 1 Extermination . | . . . . . . . Reinforcement 7 | . . . . . 4 3 Assault 1 | . . . . . . 1 Garrison 4 | . . . . . 2 2 Intercept . | . . . . . . . Searches Triggered . | . . . . . . . Construction Impeded 3 | . . . . . 1 2 Haulers Reinforced . | . . . . . . . Active Scanning Responses . | . . . . . . . Cargo Convoy Interrupts . | . . . . . . . Stealth | -11 -10 -10 -10 -9 -8 -8 --------- Run | Yrd Mat Min Exi Min Mat Sto Distress Signals 8 | . 2 . . . 3 3 Communications Jammed . | . . . . . . . Distress Signals . | . . . . . . . Times Spotted 133 | . 21 11 . 8 59 34 Peak Tracking Total 6 | . 3 2 . 6 5 5 Tactical Retreats 3 | . 1 1 . 1 . . Traps | -11 -10 -10 -10 -9 -8 -8 ------- Run | Yrd Mat Min Exi Min Mat Sto Traps Triggered 7 | . 2 . . . 3 2 Indirectly . | . . . . . . . Trap Hack Attempts . | . . . . . . . Triggered . | . . . . . . . Disarmed . | . . . . . . . Reprogrammed . | . . . . . . . Reused . | . . . . . . . Traps Extracted 1 | . . 1 . . . . Installed 1 | . . 1 . . . . Triggered . | . . . . . . . Most Traps Carried 5 | . . 5 5 5 5 5 Machines | -11 -10 -10 -10 -9 -8 -8 ---------- Run | Yrd Mat Min Exi Min Mat Sto Machines Disabled 5 | . . . . . 3 2 Max in Single Turn 2 | . . . . . 2 1 Garrison Access 2 | . . . . . 1 1 Machines Repaired . | . . . . . . . Machines Dismantled . | . . . . . . . Machines Sabotaged . | . . . . . . . Overloaded Fab Kills . | . . . . . . . Hacking | -11 -10 -10 -10 -9 -8 -8 --------- Run | Yrd Mat Min Exi Min Mat Sto Machines Accessed 32 | . 9 1 2 1 15 4 Terminals 18 | . 8 . . . 9 1 Fabricators . | . . . . . . . Repair Stations 3 | . . . . . 2 1 Recycling Units 3 | . 1 . . . 1 1 Scanalyzers 2 | . . . . . 2 . Garrison Access 2 | . . . . . 1 1 Total Hacks 98 | . 31 1 2 1 56 7 Successful 67 | . 21 1 2 1 35 7 Failed 31 | . 10 . . . 21 . Catastrophic 1 | . . . . . 1 . Database Lockouts . | . . . . . . . Manual 54 | . 22 . 1 . 28 3 Terminals 60 | . 28 . . . 31 1 Fabricators . | . . . . . . . Repair Stations 13 | . . . . . 9 4 Recycling Units 5 | . 3 . . . 1 1 Scanalyzers 12 | . . . . . 12 . Garrison Access 4 | . . . . . 3 1 Terminal Hacks 29 | . 15 1 2 1 9 1 Record 1 | . . . 1 . . . Part Schematic 2 | . 2 . . . . . Robot Schematic 1 | . 1 . . . . . Robot Analysis 8 | . 5 . . . 3 . Prototype ID Bank 4 | . 4 . . . . . Open Door 2 | . . 1 . 1 . . Branch Access Points 2 | . 1 . . . 1 . Terminal Index 2 | . 1 . . . 1 . Alert Level 4 | . 1 . . . 2 1 Recall Reinforcements 1 | . . . . . 1 . Hauler Manifests 1 | . . . . . 1 . Derelict Proto ID Bank 1 | . . . 1 . . . Fabricator Hacks . | . . . . . . . Repair Station Hacks 11 | . . . . . 7 4 Scan Component 6 | . . . . . 4 2 Repair 5 | . . . . . 3 2 Recycling Unit Hacks 3 | . 2 . . . 1 . Report Inventory 2 | . 1 . . . 1 . Retrieve Components 1 | . 1 . . . . . Scanalyzer 12 | . . . . . 12 . Insert Component 6 | . . . . . 6 . Analyze 6 | . . . . . 6 . Garrison Access Hacks 2 | . . . . . 1 1 Seal Access 2 | . . . . . 1 1 Unauthorized Hacks 10 | . 4 . . . 5 1 Terminals 8 | . 3 . . . 5 . Botnet 7 | . 3 . . . 4 . Operators 1 | . . . . . 1 . Fabricators . | . . . . . . . Repair Stations . | . . . . . . . Recycling Units 2 | . 1 . . . . 1 Mask 1 | . 1 . . . . . Tunnel 1 | . . . . . . 1 Scanalyzers . | . . . . . . . Garrison Access . | . . . . . . . Data Cores Recovered . | . . . . . . . Used . | . . . . . . . Hacking Detections 23 | . 9 . . . 14 . Full Trace Events 5 | . 1 . . . 4 . Feedback Events . | . . . . . . . Feedback Blocked . | . . . . . . . Robot Schematics Acquired 1 | . 1 . . . . . Robots Built . | . . . . . . . Authchips . | . . . . . . . Time . | . . . . . . . Total Robot Build Rating . | . . . . . . . Part Schematics Acquired 8 | . 2 . . . 6 . Parts Built . | . . . . . . . Authchips . | . . . . . . . Time . | . . . . . . . Total Part Build Rating . | . . . . . . . Parts Repaired 5 | . . . . . 3 2 Time 190 | . . . . . 108 82 Parts Recycled . | . . . . . . . Recycled Matter . | . . . . . . . Retrieved Matter . | . . . . . . . Retrieved Components 9 | . 9 . . . . . Parts Scanalyzed 6 | . . . . . 6 . Part Schematics Acquired 6 | . . . . . 6 . Parts Damaged . | . . . . . . . Bothacking | -11 -10 -10 -10 -9 -8 -8 ------------ Run | Yrd Mat Min Exi Min Mat Sto Used RIF Installer . | . . . . . . . Robots Hacked . | . . . . . . . Non-combat . | . . . . . . . Combat . | . . . . . . . Robot Hacks Applied . | . . . . . . . Relay Couplers Released . | . . . . . . . Fabnet Peak Effective % . | . . . . . . . Robots Rewired . | . . . . . . . Allies Hacked . | . . . . . . . Hacks Repelled . | . . . . . . . Allies | -11 -10 -10 -10 -9 -8 -8 -------- Run | Yrd Mat Min Exi Min Mat Sto Total Allies 13 | . . 3 . . . 10 Largest Group 10 | . . 3 3 3 . 10 Highest-Rated Group 173 | . . 40 40 40 . 173 Highest-Rated Ally 29 | . . 16 16 16 . 29 Total Orders . | . . . . . . . Ally Attacks 129 | . . . . 15 . 114 Total Damage 1695 | . . . . 201 . 1494 Kills 20 | . . . . 1 . 19 Allies Corrupted . | . . . . . . . Allies Melted . | . . . . . . . Intel | -11 -10 -10 -10 -9 -8 -8 ------- Run | Yrd Mat Min Exi Min Mat Sto Robot Analysis Total 8 | . 5 . . . 3 . Derelict Logs Recovered 3 | . . 2 . 1 . . Drone Launches . | . . . . . . . Drone Recoveries . | . . . . . . . Exploration | -11 -10 -10 -10 -9 -8 -8 ------------- Run | Yrd Mat Min Exi Min Mat Sto Turns Passed 7632 | 37 1783 1021 500 328 3138 825 Spaces Moved 3549 | 18 976 521 284 143 1348 259 Core . | . . . . . . . Treads 1 | . . . . . . 1 Legs 107 | 18 89 . . . . . Wheels 3441 | . 887 521 284 143 1348 258 Hover . | . . . . . . . Flight . | . . . . . . . Fastest Speed 95 | 120 95 175 175 175 140 175 Average Speed 171 | 120 156 175 175 175 173 205 Slowest Speed 545 | 120 175 175 175 190 205 545 Overloaded Moves . | . . . . . . . Propulsion Burnouts . | . . . . . . . Robots Hopped . | . . . . . . . Cave-ins Triggered . | . . . . . . . Exploration Rate (%) 60 | 3 99 82 64 34 97 47 Regions Visited 6 Branch Regions 4 Pre-discovered Areas 5 | . . 3 1 . . 1 Known Exits Taken 3 | . 1 . . 1 1 . Unknown Exits Taken 3 | 1 . 1 1 . . . Scrap Searched 3 | . . 1 . 2 . . Spaces Dug 21 | . 12 8 . . 1 . Terrain Destroyed 61 | . 12 8 . 6 6 29 Melee 1 | . . . . . 1 . Projectile . | . . . . . . . AOE 60 | . 12 8 . 6 5 29 Terrain Rammed . | . . . . . . . Walls Destroyed . | . . . . . . . Machines Disabled . | . . . . . . . Actions | -11 -10 -10 -10 -9 -8 -8 --------- Run | Yrd Mat Min Exi Min Mat Sto Total 4477 | 24 1097 592 288 180 1847 449 Wait 350 | . 12 17 . 2 223 96 Move 3543 | 17 975 520 283 142 1347 259 Hop . | . . . . . . . Pick Up 64 | 1 15 12 1 4 26 5 Fast Attach 30 | 1 . 4 . 2 15 8 Attach 23 | . 5 1 . 1 15 1 Detach 15 | . 1 4 . 1 8 1 Swap 36 | . 9 5 1 4 12 5 Drop 66 | . 8 7 3 4 33 11 Fire 335 | 5 70 21 . 20 167 52 Melee 5 | . 2 . . . 1 2 Ram 1 | . . . . . . 1 Kick . | . . . . . . . Crush . | . . . . . . . Escape Stasis 8 | . . . . . . 8 Rewire . | . . . . . . . Trap 1 | . . 1 . . . . Miscellaneous . | . . . . . . . Route ------- -11/Scrapyard -10/Materials (discovered 4 exits: [*Mat x3] / *Min) -10/Mines (discovered 3 exits: [*Mat x2] / *Exi) -10/Exiles -9/Mines -8/Materials (discovered 4 exits: [*Fac x3] / *Sto) -8/Storage (discovered 1 exit: [*Rec]) History --------- Turn | Location | Event 1 | -11/Scrapyard | Discovered new exit (range 3) 38 | -11/Scrapyard | Entered Materials 300 | -10/Materials | Build established: Mutant 418 | -10/Materials | Discovered new exit (range 13) 1098 | -10/Materials | Discovered new exit (range 15) 1331 | -10/Materials | Identified exit to Mines 1702 | -10/Materials | Discovered new exit (range 6) 1821 | -10/Materials | Entered Mines 1928 | -10/Mines | Deemed a non-threat by the Exiles lab entrance 1928 | -10/Mines | Discovered new exit (range 5) 1966 | -10/Mines | Discovered new exit (range 15) 1972 | -10/Mines | Received a Rocket Launcher from a helpful Derelict 1973 | -10/Mines | Discovered new exit (range 9) 1990 | -10/Mines | Joined a pair of Derelicts in attacking an 0b10 outpost 2040 | -10/Mines | Learned location of Zion (-6) 2351 | -10/Mines | Found a hidden stash of uninstalled traps 2385 | -10/Mines | A weapon hastily lodged in a ceiling crevice suddenly fell to the ground 2422 | -10/Mines | Learned location of Storage (-8) 2473 | -10/Mines | Met a Derelict who couldn't figure out how to use a Trap Extractor 2666 | -10/Mines | Assisted by bots powering up and referring to "LRC-V3" 2842 | -10/Mines | Entered Exiles 2842 | -10/Exiles | Accompanied by 3 allies 2886 | -10/Exiles | Met 8R-AWN 2912 | -10/Exiles | Met EX-HEX 2965 | -10/Exiles | Met EX-BIN 3054 | -10/Exiles | Aligned with FarCom system 3056 | -10/Exiles | Given EX-Vault access code 3096 | -10/Exiles | Opened EX-Vault 3120 | -10/Exiles | Found Firepult 3158 | -10/Exiles | Warned to stay clear of 0b10 Research branches 3212 | -10/Exiles | Met EX-DEC 3319 | -10/Exiles | Discovered new exit (range 14) 3342 | -10/Exiles | Left Exiles lab with Firepult 3342 | -10/Exiles | Entered Mines 3342 | -9/Mines | Accompanied by 3 allies 3355 | -9/Mines | Core integrity fell below 50% 3387 | -9/Mines | Lost 3 allies 3397 | -9/Mines | Identified exit to Materials 3529 | -9/Mines | Found the Drone Emporium 3538 | -9/Mines | Found Prototype Device 3538 | -9/Mines | Identified Sensor Drone Bay 3670 | -9/Mines | Entered Materials 3670 | -8/Materials | Evolved 4 slots: Propulsion x2, Utility x2 4278 | -8/Materials | Repaired Adv. Treads 4334 | -8/Materials | Discovered new exit (range 3) 4410 | -8/Materials | Build established: Scavenger-Mutant 4797 | -8/Materials | Discovered new exit (range 8) 5397 | -8/Materials | Repaired Adv. Treads 5431 | -8/Materials | Repaired Spread Laser 5529 | -8/Materials | Discovered new exit (range 5) 5628 | -8/Materials | Garrison activated, responded to threat 5947 | -8/Materials | Build established: Mutant 6011 | -8/Materials | Discovered new exit (range 4) 6485 | -8/Materials | Identified exit to Storage 6695 | -8/Materials | Build established: Scavenger-Mutant 6808 | -8/Materials | Entered Storage 7025 | -8/Storage | Garrison activated, responded to threat 7079 | -8/Storage | Assisted by bots powering up and referring to "LRC-V3" 7174 | -8/Storage | Used back door to open Recycling access 7174 | -8/Storage | Discovered new exit (range 4) 7234 | -8/Storage | Lost 3 allies 7369 | -8/Storage | Lost 5 allies 7441 | -8/Storage | Repaired Adv. Treads 7463 | -8/Storage | Core integrity fell below 50% 7559 | -8/Storage | Repaired Hrd. Heavy Armor Plating 7608 | -8/Storage | First assault squad dispatched 7633 | -8/Storage | Self-destructed Last Messages --------------- dispatched. 07611_ Acquired 32 matter. 07617_ Slug penetrates C-30 ARC. 07617_ C-30 ARC bursts open, deploying its payload. 07617_ G-50 Soldier unfolds itself. 07617_ G-47 Trooper unfolds itself. 07617_ B-36 Bruiser unfolds itself. 07617_ L-31 Rogue unfolds itself. 07617_ I-25 Savior unfolds itself. 07625_ B-36 Bruiser destroyed. 07627_ The unstable cave ceiling collapses. 07627_ Adv. Treads destroyed. 07628_ U-05 Engineer lays Concrete. 07629_ Destroyed Com. Wheel. 07630_ U-05 Engineer lays Concrete. 07631_ G-50 Soldier destroyed. 07631_ I-25 Savior destroyed. 07632_ ALERT: Construction progress impeded, dispatching reinforcements to local area. 07632_ U-05 Engineer distress signal alerts nearby ally. Map ----- +----------------------------------------------------+ | # ? # ##T##### * | | # ?? + =% | | ???? # * =#### | | ????## """ =%% =# | | ???? # """ =%! !+%"" | | ???? # """ !=*%[[#="" | | ?# # *=%=/=!# "" | | ?## = % *!# | | ?### # #+###########%#### | | ?##### # /###!#### | | ??#### + *[#!%=* ## | | ????## ## """*""" #=!%= | | ????## ## """[""" +*=%= | | ?????# ## """="""%#==*= | | ????## ## """!"""[#*%[[ ## | | ????## ## """=""" ##%[=### | | ????## + =! %** ##!= ### | | ###### #####" "##### =%# ? | | # T #o#####"R"##### ^^# ? | | ##?##"""##?## *+ ? | | u #?#######?## #T# | | ########T#?## ### | | g ### | | % ##### ##? | | #?????????? ##? | | @l #????g??????" #? | | [ #???g???????? ?? | | % ##???????????? ?? | | # # ###????????????? ??? | | #####????????????????????? | | ?????????????????????????? | | ?????????????????????????? | | ?????????????????????????? | | ?????????????????????????? | | | | | | | | | | | | | | | | | | | | | | | | | | | | | | | | | +----------------------------------------------------+ Best States ------------- Heat Dissipation 45 Energy Generation 15 Energy Capacity 280 Matter Stores 300 Matter Capacity 300 Sight Range 16 Terrain Scan Density 10 Armor Coverage 600 Resistance: KI 20 Resistance: TH 20 Resistance: EX 20 Resistance: EM 20 Resistance: I 20 Resistance: S 20 Resistance: P 20 Evasion (%) 55 Recoil Reduction 1 Offensive Hacking 10 Trap Extractor Capacity 6 Item Schematics ----------------- Huge Storage Unit | -10/Materials | Hacked Hcp. Storage Unit | -10/Materials | Hacked System Shield | -8/Materials | Scanalyzed Hacking Suite | -8/Materials | Scanalyzed Imp. Datajack | -8/Materials | Scanalyzed Rocket Launcher | -8/Materials | Scanalyzed Imp. Trap Extractor | -8/Materials | Scanalyzed Imp. Heat Sink | -8/Materials | Scanalyzed Robot Schematics ------------------ M-13 Machinist | -10/Materials | Hacked Fabricated ------------ Nothing Alien Tech Used ----------------- None Achievements -------------- None Challenges ------------ None Game ------ Seed ArmorUtilityBarrier Manual? 0 Play Time 01:13:27 Cumulative 178.5 hours Start 2024.03.10 @ 10:39:25 End 2024.03.10 @ 16:32:10 Sessions 5 Manual Loads 0 Difficulty Adventurer Special Mode None Game No. 136 Rogue 0 Adventurer 136 Explorer 0 Win Type - Total 2 Types 2/0/0/0/0/0/0/0/0 Lore% 57 Gallery% 63 Achievement% 54 Wizard Run 0 Options --------- Layout 0 ASCII 0 Keyboard 0 Movement Mouse Keybinds 0 Fullscreen 1 Font 20/SmallcapsGlow Map View 66x50 Zoom Use 0% Tactical HUD 1 Map Filters NONE Filters NONE Steam 1 RUN: 4cb655d0-d064-45e6-9f8e-02a9149721fa